fUST/lending_fUST_20260220
["ID","MTS","AMOUNT","RATE_DAILY","PERIOD"]
[406040917,1771578646579,-500.0,0.00029392,2]
[406040918,1771578646588,-500.0,0.00029392,2]
[406040919,1771578646598,-500.0,0.00029392,2]
[406040920,1771578646607,-500.0,0.00029392,2]
[406040921,1771578646616,-500.0,0.00029392,2]
[406040922,1771578646626,-500.0,0.00029392,2]
[406040923,1771578646638,-500.0,0.00029392,2]
[406040924,1771578646648,-487.54377175,0.00029392,2]
[406040925,1771578646658,-500.0,0.00029392,2]
[406040926,1771578646668,-500.0,0.00029392,2]
[406040927,1771578646677,-500.0,0.00029392,2]
[406040928,1771578646686,-489.90853793,0.00029392,2]
[406040929,1771578646696,-500.0,0.00029392,2]
[406040930,1771578646705,-500.0,0.00029392,19]
[406040931,1771578646714,-244.67,0.00029393,3]
[406040932,1771578646723,-432.75658874,0.00029393,3]
[406040933,1771578646854,-301.27341126,0.00029393,3]
[406040934,1771578646864,-1188.9,0.00029393,10]
[406040935,1771578646873,-2035.82,0.00029393,10]
[406040936,1771578646883,-1696.52,0.00029393,10]
[406040937,1771578646893,-1413.77,0.00029393,10]
[406040938,1771578646902,-30573.2917438,0.00029393,2]
[406040939,1771578646913,-180.25386113,0.000294,2]
[406040940,1771578646924,-500.0,0.00029402,19]
[406040941,1771578646934,-500.0,0.00029402,19]
[406040942,1771578646943,-500.0,0.00029402,19]
[406040943,1771578646953,-500.0,0.00029402,19]
[406040944,1771578646962,-6851.40502394,0.00029403,2]
[406041044,1771579831727,-1262.26489151,0.00012389,3]
[406041045,1771579831738,-1437.73510849,0.00012514,3]
[406041047,1771579831750,-933.0,0.00012514,3]
[406041083,1771579837710,-2629.26489151,0.00012514,3]
[406041085,1771579837719,-316.37699428,0.00013699,2]
[406041087,1771579837728,-713.78675324,0.00015,2]
[406041088,1771579837738,-280.8537867,0.00023307,2]
[406041089,1771579837747,-435.02546651,0.00023671,2]
[406041090,1771579837759,-378.39264092,0.00023671,2]
[406041091,1771579837768,-22.50383713,0.0002441,2]
[406041092,1771579837821,-210.72223657,0.0002441,2]
[406041093,1771579837831,-300.0,0.00025203,2]
[406041094,1771579837840,-61.53776743,0.00025204,2]
[406041421,1771579843026,-495.44420409,0.00025204,2]
[406041639,1771579845592,-475.01802848,0.00025204,2]
[406041641,1771579845602,-1397.91197152,0.00026124,2]
[406041646,1771579845646,-1369.10945839,0.00026124,2]
[406041649,1771579845658,-5680.88104039,0.00026124,2]
[406041651,1771579845668,-300.0,0.00026574,2]
[406041653,1771579845678,-168.0,0.00027,7]
[406041655,1771579845687,-500.0,0.00027397,2]
[406041657,1771579845697,-1133.005,0.00027685,120]
[406041659,1771579845706,-300.0,0.00027903,2]
[406041661,1771579845716,-577.82356154,0.00028,120]
[406041663,1771579845725,-160.0,0.00028858,3]
[406041665,1771579845734,-5000.0,0.00029,15]
[406041667,1771579845743,-177.28415072,0.0002928,2]
[406041669,1771579845753,-500.0,0.0002928,2]
[406041671,1771579845762,-319.39248493,0.0002928,2]
[406041673,1771579845772,-332.1112935,0.0002928,2]
[406041675,1771579845783,-221.10094866,0.0002928,2]
[406041677,1771579845793,-156.94930797,0.0002928,2]
[406041679,1771579845802,-500.0,0.0002928,2]
[406041681,1771579845812,-158.301,0.00029384,22]
[406041683,1771579845821,-40.92236961,0.00029385,2]
[406048083,1771581031646,-1595.60659941,0.00015443,3]
[406048084,1771581031655,-468.4709124,0.00015599,2]
[406048085,1771581031698,-731.5290876,0.00015599,2]
[406048086,1771581031707,-173.13699467,0.000156,2]
[406048087,1771581031716,-1324.44791251,0.000156,2]
[406048088,1771581031725,-298.0,0.00016209,2]
[406048089,1771581031734,-1324.44791251,0.0001621,5]
[406048090,1771581031746,-409.1519607,0.00016819,9]
[406048092,1771581038103,-915.29595181,0.00016819,9]
[406048093,1771581038113,-1324.44791251,0.00017429,13]
[406048094,1771581038123,-1324.44791251,0.00018039,16]
[406048095,1771581038132,-1324.44791251,0.00018649,20]
[406048097,1771581038143,-1324.44791251,0.00019258,24]
[406048100,1771581038163,-251.97597642,0.00019259,2]
[406048102,1771581038174,-1324.44791251,0.00019868,28]
[406048104,1771581038184,-1324.44791251,0.00020478,31]
[406048106,1771581038195,-367.74590912,0.00021087,35]
[406048108,1771581038212,-956.70200339,0.00021087,35]
[406048110,1771581038223,-1324.44791251,0.00021697,39]
[406048112,1771581038233,-169.01950256,0.00022265,2]
[406048113,1771581038244,-1324.44791251,0.00022307,42]
[406048114,1771581038255,-1324.44791251,0.00022916,46]
[406048115,1771581038266,-1324.44791251,0.00023526,50]
[406048116,1771581038276,-600.0,0.00023615,2]
[406048117,1771581038286,-1324.44791251,0.00024136,54]
[406048118,1771581038296,-173.13699467,0.00024441,56]
[406048119,1771581038306,-1324.44791251,0.00024746,57]
[406048120,1771581038316,-179.070258,0.00024851,2]
[406048121,1771581038327,-1324.44791251,0.00025355,61]
[406048122,1771581038338,-1324.44791251,0.00025965,65]
[406048123,1771581038348,-1324.44791251,0.00026575,69]
[406048124,1771581038358,-179.070258,0.00026595,2]
[406048125,1771581038369,-158.301,0.00026932,15]
[406048126,1771581038379,-1324.44791251,0.00027184,72]
[406048127,1771581038389,-442.47314645,0.00027396,19]
[406048128,1771581038399,-500.0,0.00027397,2]
[406048129,1771581038409,-500.0,0.00027411,7]
[406048130,1771581038420,-500.0,0.00027684,19]
[406048131,1771581038430,-1324.44791251,0.00027794,76]
[406048132,1771581038440,-179.070258,0.00028338,2]
[406048133,1771581038451,-1324.44791251,0.00028404,80]
[406048134,1771581038461,-173.13699466,0.00028423,120]
[406048135,1771581038471,-1324.44791251,0.00029013,83]
[406048136,1771581038481,-10375.54340358,0.000293,2]
[406048643,1771581045866,-500.60659941,0.000293,2]
[406048656,1771581698439,329.31,6.9e-05,2]
[406048673,1771582231863,-327.0,0.00017819,2]
[406048689,1771582237994,-4052.9881085,0.00017819,2]
[406048690,1771582238006,-620.0118915,0.00017819,2]
[406048691,1771582238015,-300.0,0.00017999,2]
[406048692,1771582238024,-300.0,0.00017999,2]
[406048693,1771582238034,-300.0,0.00017999,2]
[406048694,1771582238044,-300.0,0.00017999,2]
[406048695,1771582238054,-1200.0,0.00017999,2]
[406048696,1771582238064,-2068.51189851,0.00018,3]
[406048697,1771582238080,-2931.48810149,0.00018,3]
[406048698,1771582238090,-48579.64005841,0.00018,3]
[406049159,1771582245069,-532.40315843,0.00017641,2]
[406049161,1771582245080,-1420.35994159,0.00018,3]
[406049163,1771582245089,-5000.0,0.000181,2]
[406049165,1771582245098,-4316.16264565,0.000181,2]
[406049167,1771582245109,-683.83735435,0.000181,2]
[406049169,1771582245122,-1357.39668019,0.000181,5]
[406049187,1771582245284,-6003.47438014,0.000181,5]
[406049275,1771582246075,-2639.12893967,0.000181,5]
[406049278,1771582246084,-300.0,0.00018199,2]
[406049280,1771582246094,-10000.0,0.000182,2]
[406049282,1771582246105,-500.0,0.00018708,2]
[406049284,1771582246115,-500.0,0.00018708,2]
[406049285,1771582246124,-500.0,0.00018708,2]
[406049287,1771582246134,-289.37159973,0.00018708,2]
[406049289,1771582246144,-1572.61386357,0.00019306,2]
[406049292,1771582246154,-236.89019,0.00019501,2]
[406049294,1771582246163,-420.0,0.00019639,2]
[406049296,1771582246172,-159.93716749,0.00020613,2]
[406049298,1771582246182,-587.0,0.00021428,2]
[406049299,1771582246191,-500.0,0.00022306,2]
[406049301,1771582246200,-500.0,0.00022306,2]
[406049303,1771582246209,-500.0,0.00022306,2]
[406049305,1771582246219,-745.45749463,0.00022699,2]
[406049307,1771582246228,-743.73449086,0.00023,3]
[406049309,1771582246237,-823.0,0.00023381,2]
[406049311,1771582246246,-507.0,0.00023752,10]
[406049313,1771582246255,-688.8017773,0.00023839,2]
[406049315,1771582246264,-151.0,0.00023839,2]
[406049317,1771582246273,-1379.0,0.00024396,2]
[406049319,1771582246283,-659.0,0.00025306,7]
[406049322,1771582246293,-500.659,0.00025807,2]
[406049324,1771582246303,-183.3458806,0.00026446,2]
[406049326,1771582246313,-210.04192707,0.00026683,2]
[406049327,1771582246322,-688.8017773,0.00026903,2]
[406049329,1771582246333,-500.0,0.00027397,2]
[406049331,1771582246343,-250.0,0.00027932,2]
[406049333,1771582246352,-500.0,0.00027932,2]
[406049335,1771582246361,-250.0,0.00027932,2]
[406049337,1771582246370,-500.0,0.00027932,2]
[406049339,1771582246380,-250.0,0.00027932,2]
[406049341,1771582246390,-500.0,0.00027932,2]
[406049343,1771582246399,-225.99637001,0.00027932,2]
[406049345,1771582246408,-500.0,0.00027932,2]
[406049347,1771582246417,-500.0,0.00027932,2]
[406049349,1771582246426,-500.0,0.00027932,2]
[406049351,1771582246435,-250.0,0.00027932,2]
[406049353,1771582246444,-500.0,0.00027932,2]
[406049355,1771582246453,-250.0,0.00027932,2]
[406049357,1771582246462,-500.0,0.00027932,2]
[406049359,1771582246471,-250.0,0.00027932,2]
[406049361,1771582246480,-500.0,0.00027932,2]
[406049363,1771582246489,-250.0,0.00027932,2]
[406049365,1771582246499,-500.0,0.00027932,2]
[406049367,1771582246508,-250.0,0.00027932,2]
[406049369,1771582246521,-500.0,0.00027932,2]
[406049371,1771582246530,-500.0,0.00027932,2]
[406049373,1771582246540,-500.0,0.00027932,2]
[406049375,1771582246549,-500.0,0.00027932,2]
[406049377,1771582246558,-250.0,0.00027932,2]
[406049379,1771582246567,-500.0,0.00027932,2]
[406049381,1771582246576,-250.0,0.00027932,2]
[406049383,1771582246585,-273.28855637,0.00027932,2]
[406049385,1771582246595,-250.0,0.00027932,2]
[406049387,1771582246603,-250.0,0.00027932,2]
[406049389,1771582246612,-250.0,0.00027932,2]
[406049391,1771582246621,-250.0,0.00027932,2]
[406049393,1771582246630,-250.0,0.00027932,2]
[406049395,1771582246639,-250.0,0.00027932,2]
[406049397,1771582246649,-270.62331005,0.00027932,2]
[406049399,1771582246658,-181.08010149,0.00027932,2]
[406049401,1771582246667,-187.78006525,0.00027932,2]
[406049403,1771582246676,-194.72792766,0.00027932,2]
[406049405,1771582246686,-500.0,0.00027932,2]
[406049407,1771582246695,-500.0,0.00027932,2]
[406049409,1771582246705,-201.93286099,0.00027932,2]
[406049411,1771582246714,-500.0,0.00027932,2]
[406049413,1771582246724,-209.40437684,0.00027932,2]
[406049415,1771582246732,-500.0,0.00027932,2]
[406049417,1771582246742,-217.15233878,0.00027932,2]
[406049419,1771582246751,-500.0,0.00027932,2]
[406049421,1771582246760,-225.18697532,0.00027932,2]
[406049423,1771582246770,-500.0,0.00027932,2]
[406049425,1771582246780,-233.51889341,0.00027932,2]
[406049427,1771582246790,-500.0,0.00027932,2]
[406049429,1771582246800,-242.15909246,0.00027932,2]
[406049431,1771582246809,-500.0,0.00027932,2]
[406049433,1771582246819,-251.11897888,0.00027932,2]
[406049435,1771582246828,-500.0,0.00027932,2]
[406049436,1771582246838,-260.4103811,0.00027932,2]
[406049437,1771582246847,-500.0,0.00027932,2]
[406049438,1771582246856,-376.103869,0.00027932,2]
[406049439,1771582246866,-500.0,0.00027932,2]
[406049440,1771582246875,-554.60771036,0.00028594,19]
[406049441,1771582246885,-526.1269912,0.00028594,19]
[406049442,1771582246894,-500.0,0.00028594,19]
[406049443,1771582246903,-505.167713,0.00028594,19]
[406049444,1771582246913,-500.0,0.00029284,19]
[406049445,1771582246925,-159.926,0.00029285,22]
[406049446,1771582246934,-115685.75054357,0.000293,2]
[406049447,1771582246947,-301.1433787,0.000293,2]
[406049448,1771582246958,-1870.25087948,0.000293,2]
[406049514,1771583432546,-680.97,8.865e-05,3]
[406049517,1771583432605,-1752.54722669,8.865e-05,3]
[406049518,1771583432615,-5000.0,8.955e-05,3]
[406049519,1771583432626,-299.42797198,9.275e-05,2]
[406049520,1771583432636,-550.0,9.275e-05,2]
[406049521,1771583432646,-250.23623012,0.0001,2]
[406049522,1771583432655,-300.0,0.00014999,2]
[406049523,1771583432665,-300.0,0.00014999,2]
[406049524,1771583432677,-300.0,0.00014999,2]
[406049525,1771583432688,-300.0,0.00014999,2]
[406049526,1771583432699,-1200.0,0.00014999,2]
[406049527,1771583432709,-3289.56756076,0.00015,2]
[406049528,1771583432721,-225.32734156,0.00016088,2]
[406049529,1771583432731,-500.0,0.00017997,2]
[406049530,1771583432741,-347.40297125,0.00017997,2]
[406049531,1771583432751,-500.0,0.00017997,2]
[406049532,1771583432762,-306.45964597,0.00017997,2]
[406049533,1771583432772,-295.64572656,0.00017997,2]
[406049534,1771583432782,-471.37817317,0.00017997,2]
[406049537,1771583438249,-28.62182683,0.00017997,2]
[406049539,1771583438259,-350.88204045,0.00017997,2]
[406049603,1771583440623,-388.81516019,0.00017817,3]
[406049605,1771583440632,-63.31304495,0.00017997,2]
[406049851,1771583445003,-85.8049146,0.00017997,2]
[406049852,1771583445013,-409.30138893,0.00017997,2]
[406049865,1771583446123,-90.69861107,0.00017997,2]
[406049866,1771583446133,-500.0,0.00017997,2]
[406049867,1771583446152,-1500.38908854,0.00018,2]
[406049868,1771583446166,-7404.35463651,0.00018,2]
[406049869,1771583446176,-10637.33003437,0.00018,2]
[406049870,1771583446187,-7055.78215922,0.00018,2]
[406049895,1771584632427,-940.06947016,0.00012402,2]
[406049903,1771584632529,-1362.03,0.00012402,2]
[406049940,1771584638395,-2697.90052984,0.00012402,2]
[406049942,1771584638414,-280.8537867,0.00012528,2]
[406049944,1771584638423,-5000.0,0.00013159,2]
[406049946,1771584638432,-3733.655218,0.00013292,2]
[406049948,1771584638441,-300.0,0.00013561,2]
[406049950,1771584638450,-151.0,0.00013699,2]
[406049952,1771584638460,-316.37699428,0.00013699,2]
[406049954,1771584638469,-150.0,0.00014589,2]
[406049955,1771584638478,-221.32386043,0.00016589,2]
[406049957,1771584638488,-500.0,0.00017996,2]
[406049960,1771584638497,-500.0,0.00017996,2]
[406049961,1771584638507,-500.0,0.00017997,2]
[406049964,1771584638516,-500.0,0.00017997,2]
[406049966,1771584638526,-322.27164099,0.00017997,2]
[406049968,1771584638535,-500.0,0.00017997,2]
[406049970,1771584638544,-500.0,0.00017997,2]
[406049971,1771584638553,-198.81906664,0.00017997,2]
[406049973,1771584638563,-500.0,0.00017997,2]
[406049975,1771584638574,-500.0,0.00017997,2]
[406049978,1771584638584,-500.0,0.00017997,2]
[406049980,1771584638594,-500.0,0.00017997,2]
[406049981,1771584638604,-500.0,0.00017997,2]
[406049983,1771584638613,-500.0,0.00017997,2]
[406049985,1771584638622,-500.0,0.00017997,2]
[406049987,1771584638632,-500.0,0.00017997,2]
[406049989,1771584638641,-509.27258664,0.00017997,2]
[406049991,1771584638652,-500.0,0.00017997,2]
[406049993,1771584638661,-500.0,0.00017997,2]
[406049996,1771584638671,-500.0,0.00017997,2]
[406049998,1771584638680,-500.0,0.00017997,2]
[406050000,1771584638690,-500.0,0.00017997,2]
[406050002,1771584638699,-500.0,0.00017997,2]
[406050003,1771584638708,-500.0,0.00017997,2]
[406050005,1771584638717,-500.0,0.00017997,2]
[406050007,1771584638726,-500.0,0.00017997,2]
[406050009,1771584638736,-500.0,0.00017997,2]
[406050011,1771584638745,-500.0,0.00017997,2]
[406050013,1771584638755,-500.0,0.00017997,2]
[406050015,1771584638765,-500.0,0.00017997,2]
[406050017,1771584638774,-500.0,0.00017997,2]
[406050019,1771584638784,-644.21010177,0.00017997,2]
[406050021,1771584638794,-500.0,0.00017997,2]
[406050023,1771584638803,-500.0,0.00017997,2]
[406050025,1771584638813,-500.0,0.00017997,2]
[406050027,1771584638823,-500.0,0.00017997,2]
[406050030,1771584638833,-500.0,0.00017997,2]
[406050032,1771584638842,-500.0,0.00017997,2]
[406050034,1771584638851,-500.0,0.00017997,2]
[406050036,1771584638861,-500.0,0.00017997,2]
[406050038,1771584638872,-582.16914257,0.00017997,2]
[406050040,1771584638881,-500.0,0.00017997,2]
[406050041,1771584638891,-500.0,0.00017997,2]
[406050043,1771584638901,-500.0,0.00017997,2]
[406050045,1771584638911,-500.0,0.00017997,2]
[406050048,1771584638921,-500.0,0.00017997,2]
[406050049,1771584638930,-500.0,0.00017997,2]
[406050051,1771584638939,-500.0,0.00017997,2]
[406050053,1771584638949,-500.0,0.00017997,2]
[406050055,1771584638958,-500.0,0.00017997,2]
[406050057,1771584638968,-500.0,0.00017997,2]
[406050059,1771584638978,-500.0,0.00017997,2]
[406050061,1771584638987,-170.16865781,0.00017997,2]
[406050063,1771584638996,-500.0,0.00017997,2]
[406050065,1771584639006,-500.0,0.00017997,2]
[406050068,1771584639015,-500.0,0.00017997,2]
[406050070,1771584639025,-500.0,0.00017997,2]
[406050072,1771584639034,-500.0,0.00017997,2]
[406050074,1771584639043,-500.0,0.00017997,2]
[406050076,1771584639053,-500.0,0.00017997,2]
[406050078,1771584639062,-500.0,0.00017997,2]
[406050079,1771584639071,-406.49723658,0.00017997,2]
[406050082,1771584639083,-93.50276342,0.00017997,2]
[406050084,1771584639092,-500.0,0.00017997,2]
[406050086,1771584639102,-500.0,0.00017997,2]
[406050088,1771584639111,-500.0,0.00017997,2]
[406050090,1771584639120,-500.0,0.00017999,2]
[406050092,1771584639129,-500.0,0.00017999,2]
[406050094,1771584639138,-524.73,0.00017999,2]
[406050096,1771584639148,-244.24831721,0.00017999,2]
[406050098,1771584639156,-24601.08759202,0.00018,2]
[406050800,1771584646275,-5000.0,0.0001782,2]
[406050802,1771584646286,-772.357395,0.00018,2]
[406075239,1771585832458,-3360.29542282,8.865e-05,2]
[406075272,1771585838587,-770.68470287,8.865e-05,2]
[406075274,1771585838597,-5000.0,8.955e-05,2]
[406075276,1771585838607,-547.0,9.045e-05,2]
[406075278,1771585838616,-150.0,9.091e-05,2]
[406075280,1771585838626,-1200.0,9.135e-05,2]
[406075282,1771585838636,-300.0,9.997e-05,2]
[406075284,1771585838646,-300.0,9.997e-05,2]
[406075286,1771585838656,-300.0,9.997e-05,2]
[406075288,1771585838665,-300.0,9.997e-05,2]
[406075290,1771585838675,-250.23623012,0.0001,2]
[406075292,1771585838684,-1083.0,0.00010049,2]
[406075294,1771585838694,-420.0,0.00010997,2]
[406075297,1771585838704,-177.0,0.00011091,2]
[406075299,1771585838713,-3241.35348614,0.00011583,2]
[406075303,1771585838742,-2282.38977896,0.00011583,2]
[406075305,1771585838753,-2194.52333403,0.00011963,2]
[406075307,1771585838763,-587.0,0.00012096,2]
[406075309,1771585838772,-204.0,0.00013091,2]
[406075311,1771585838782,-3090.88951903,0.00013172,2]
[406075313,1771585838791,-500.0,0.00013271,2]
[406075315,1771585838800,-500.0,0.00013271,2]
[406075317,1771585838809,-500.0,0.00013271,2]
[406075319,1771585838819,-500.0,0.00013271,2]
[406075321,1771585838828,-500.0,0.00013271,2]
[406075323,1771585838837,-500.0,0.00013271,2]
[406075325,1771585838847,-500.0,0.00013271,2]
[406075327,1771585838856,-500.0,0.00013271,2]
[406075329,1771585838865,-293.80112242,0.00013271,2]
[406075331,1771585838874,-501.76292103,0.00013271,2]
[406075333,1771585838884,-500.0,0.00013271,2]
[406075335,1771585838893,-500.0,0.00013271,2]
[406075338,1771585838903,-500.0,0.00013271,2]
[406075340,1771585838913,-500.0,0.00013271,2]
[406075342,1771585838922,-500.0,0.00013271,2]
[406075344,1771585838931,-500.0,0.00013271,2]
[406075346,1771585838940,-500.0,0.00013271,2]
[406075348,1771585838950,-500.0,0.00013271,2]
[406075350,1771585838959,-500.0,0.00013271,2]
[406075352,1771585838968,-500.0,0.00013271,2]
[406075354,1771585838977,-152.31540548,0.00013271,2]
[406075356,1771585838986,-500.0,0.00013271,2]
[406075358,1771585838996,-577.11049729,0.00013271,2]
[406075360,1771585839005,-500.0,0.00013271,2]
[406075362,1771585839014,-500.0,0.00013271,2]
[406075364,1771585839023,-494.04303057,0.00013271,2]
[406075366,1771585839032,-500.0,0.00013271,2]
[406075368,1771585839042,-500.0,0.00013271,2]
[406075370,1771585839051,-500.0,0.00013271,2]
[406075372,1771585839060,-500.0,0.00013271,2]
[406075374,1771585839070,-500.0,0.00013271,2]
[406075376,1771585839079,-500.0,0.00013271,2]
[406075378,1771585839088,-500.0,0.00013273,2]
[406075380,1771585839097,-500.0,0.00013273,2]
[406075382,1771585839106,-500.0,0.00013273,2]
[406075384,1771585839115,-500.0,0.00013273,2]
[406075386,1771585839124,-500.0,0.00013273,2]
[406075388,1771585839134,-500.0,0.00013273,2]
[406075390,1771585839144,-500.0,0.00013273,2]
[406075392,1771585839154,-500.0,0.00013273,2]
[406075394,1771585839164,-500.0,0.00013273,2]
[406075396,1771585839173,-500.0,0.00013273,2]
[406075398,1771585839183,-500.0,0.00013273,2]
[406075400,1771585839191,-500.0,0.00013273,2]
[406075402,1771585839201,-500.0,0.00013273,2]
[406075404,1771585839210,-823.0,0.00013306,2]
[406075406,1771585839219,-250.0,0.00013425,2]
[406075408,1771585839228,-500.0,0.00013547,2]
[406075410,1771585839238,-500.0,0.00013698,2]
[406075412,1771585839247,-347.40297125,0.00013698,2]
[406075414,1771585839257,-500.0,0.00013699,2]
[406075416,1771585839266,-500.0,0.00013699,2]
[406075418,1771585839274,-384.92643149,0.00013699,2]
[406075420,1771585839284,-500.0,0.00013699,2]
[406075422,1771585839293,-500.0,0.00013699,2]
[406075424,1771585839303,-500.33844171,0.00013699,2]
[406075426,1771585839312,-500.0,0.00013699,2]
[406075428,1771585839321,-335.41002085,0.00013699,2]
[406075430,1771585839331,-500.0,0.00013699,2]
[406075432,1771585839340,-500.0,0.00013699,2]
[406075434,1771585839350,-500.0,0.00013699,2]
[406075436,1771585839359,-500.0,0.00013699,2]
[406075438,1771585839368,-500.0,0.00013699,2]
[406075440,1771585839377,-243.63143784,0.00013699,2]
[406075442,1771585839386,-547.91161747,0.00013699,2]
[406075444,1771585839395,-500.0,0.00013699,2]
[406075446,1771585839404,-502.2280031,0.00013699,2]
[406075448,1771585839413,-500.0,0.00013699,2]
[406075450,1771585839423,-500.0,0.00013699,2]
[406075452,1771585839432,-500.0,0.00013699,2]
[406075454,1771585839442,-500.0,0.00013699,2]
[406075456,1771585839452,-500.0,0.00013699,2]
[406075459,1771585839463,-500.0,0.00013699,2]
[406075461,1771585839472,-500.0,0.00013699,2]
[406075463,1771585839481,-500.0,0.00013699,2]
[406075465,1771585839490,-500.0,0.00013699,2]
[406075467,1771585839499,-595.87774479,0.00013699,2]
[406075469,1771585839511,-500.0,0.00013699,2]
[406075471,1771585839520,-500.0,0.00013699,2]
[406075472,1771585839529,-500.0,0.00013699,2]
[406075474,1771585839538,-500.0,0.00013699,2]
[406075477,1771585839549,-500.0,0.00013699,2]
[406075478,1771585839558,-303.85533541,0.00013699,2]
[406075481,1771585839568,-500.0,0.00013699,2]
[406075483,1771585839577,-505.07865696,0.00013699,2]
[406075485,1771585839589,-500.0,0.00013699,2]
[406075486,1771585839599,-408.16353977,0.00013699,2]
[406075488,1771585839608,-500.0,0.00013699,2]
[406075490,1771585839617,-500.0,0.00013699,2]
[406075492,1771585839626,-500.0,0.00013699,2]
[406075494,1771585839636,-500.0,0.00013699,2]
[406075496,1771585839645,-500.0,0.00013699,2]
[406075499,1771585839655,-500.0,0.00013699,2]
[406075501,1771585839664,-500.0,0.00013699,2]
[406075503,1771585839673,-500.0,0.00013699,2]
[406075505,1771585839683,-564.28199453,0.00013699,2]
[406075507,1771585839692,-500.0,0.00013699,2]
[406075509,1771585839701,-500.0,0.00013699,2]
[406075511,1771585839711,-151.0,0.00013699,2]
[406075513,1771585839720,-151.0,0.00013699,2]
[406075515,1771585839729,-500.0,0.00013699,2]
[406075517,1771585839739,-500.0,0.00013699,2]
[406075519,1771585839747,-500.0,0.00013699,2]
[406075521,1771585839757,-500.0,0.00013699,2]
[406075523,1771585839767,-500.0,0.00013699,2]
[406075525,1771585839778,-500.0,0.00013699,2]
[406075526,1771585839787,-242.05436526,0.00013699,2]
[406075528,1771585839797,-500.0,0.00013699,2]
[406075530,1771585839806,-500.0,0.00013699,2]
[406075532,1771585839815,-500.0,0.00013821,2]
[406075534,1771585839824,-1000.0,0.00013821,2]
[406075537,1771585839833,-1000.0,0.00013821,2]
[406075539,1771585839843,-228.28897223,0.00013973,2]
[406075541,1771585839852,-560.98465938,0.00014095,2]
[406075543,1771585839861,-1125.42439829,0.00014175,2]
[406075545,1771585839870,-374.93006926,0.00014247,2]
[406075547,1771585839879,-500.0,0.00014247,2]
[406075549,1771585839888,-500.0,0.00014247,2]
[406075551,1771585839897,-361.06844921,0.00014247,2]
[406075553,1771585839911,-500.0,0.00014247,2]
[406075555,1771585839920,-454.51343015,0.00014247,2]
[406075557,1771585839929,-1000.4080384,0.00014247,2]
[406075559,1771585839938,-500.0,0.00014247,2]
[406075561,1771585839948,-500.0,0.00014247,2]
[406075563,1771585839958,-1500.0,0.00014368,2]
[406075565,1771585839967,-908.0,0.00014637,2]
[406075567,1771585839976,-427.0673796,0.00014916,2]
[406075569,1771585839985,-231.0,0.00015091,2]
[406075571,1771585839995,-2100.84879668,0.00015156,2]
[406075573,1771585840004,-151.0,0.00015156,2]
[406075575,1771585840013,-151.0,0.00015156,2]
[406075577,1771585840024,-1443.810174,0.0001581,2]
[406075579,1771585840033,-2240.19513919,0.00016137,2]
[406075581,1771585840042,-1443.810174,0.00016475,2]
[406075584,1771585840052,-197.85314018,0.000168,2]
[406075608,1771585840172,-258.0,0.00017091,2]
[406075610,1771585840181,-2286.64392007,0.00017118,2]
[406075612,1771585840190,-1443.810174,0.00017141,2]
[406075614,1771585840199,-3090.88951902,0.0001718,2]
[406075616,1771585840208,-1443.810174,0.00017806,2]
[406075619,1771585840217,-199.4532238,0.00017982,2]
[406075622,1771585840226,-969.106267,0.00017982,2]
[406075624,1771585840236,-6404.8857012,0.00017982,2]
[406075626,1771585840245,-500.0,0.00017999,2]